fUST/lending_fUST_20240728
["ID","MTS","AMOUNT","RATE_DAILY","PERIOD"]
[333457101,1722144648117,-355.411328,0.00013698,2]
[333457102,1722144648127,-151.0,0.00013698,2]
[333457103,1722144648136,-500.0,0.00013698,2]
[333457104,1722144648146,-355.411328,0.00013698,2]
[333457105,1722144648155,-151.0,0.00013698,2]
[333457106,1722144648164,-355.411328,0.00013698,2]
[333457107,1722144648174,-151.0,0.00013698,2]
[333457108,1722144648183,-355.411328,0.00013698,2]
[333457109,1722144648192,-355.411328,0.00013698,2]
[333457110,1722144648202,-551.52,0.00013698,2]
[333457111,1722144648211,-151.0,0.00013698,2]
[333457112,1722144648222,-500.0,0.00013698,2]
[333457113,1722144648232,-355.411328,0.00013698,2]
[333457114,1722144648242,-236.718507,0.00013698,2]
[333457115,1722144648251,-355.411328,0.00013698,2]
[333457116,1722144648261,-355.411328,0.00013698,2]
[333457117,1722144648271,-355.411328,0.00013698,2]
[333457118,1722144648281,-355.411328,0.00013698,2]
[333457119,1722144648290,-355.411328,0.00013698,2]
[333457120,1722144648300,-355.411328,0.00013698,2]
[333457121,1722144648310,-355.411328,0.00013698,2]
[333457122,1722144648320,-355.411328,0.00013698,2]
[333457123,1722144648330,-355.411328,0.00013698,2]
[333457124,1722144648340,-355.411328,0.00013698,2]
[333457125,1722144648350,-355.41132,0.00013698,2]
[333457126,1722144648361,-570.42,0.00013698,2]
[333457127,1722144648370,-504.27313054,0.00013698,2]
[333457128,1722144648380,-500.0,0.00013698,2]
[333457129,1722144648391,-500.0,0.00013698,2]
[333457130,1722144648401,-500.0,0.00013698,2]
[333457131,1722144648411,-588.15,0.00013698,2]
[333457132,1722144648420,-500.0,0.00013698,2]
[333457133,1722144648430,-216.35673607,0.00013698,2]
[333457134,1722144648441,-517.95,0.00013698,2]
[333457135,1722144648454,-500.0,0.00013698,2]
[333457136,1722144648464,-162.231364,0.00013698,2]
[333457137,1722144648474,-151.0,0.00013698,2]
[333457138,1722144648483,-161.107165,0.00013698,2]
[333457139,1722144648494,-502.19509732,0.00013698,2]
[333457140,1722144648504,-500.0,0.00013698,2]
[333457141,1722144648513,-500.0,0.00013698,2]
[333457142,1722144648523,-151.0,0.00013698,2]
[333457143,1722144648534,-151.0,0.00013698,2]
[333457144,1722144648543,-151.0,0.00013698,2]
[333457145,1722144648553,-151.0,0.00013698,2]
[333457146,1722144648563,-151.0,0.00013698,2]
[333457147,1722144648572,-500.0,0.00013698,2]
[333457148,1722144648581,-500.0,0.00013698,2]
[333457149,1722144648591,-500.0,0.00013698,2]
[333457150,1722144648600,-1334.54,0.00013698,2]
[333457151,1722144648609,-4631.15,0.00013698,2]
[333457152,1722144648619,-4631.15,0.00013698,2]
[333457153,1722144648628,-4631.15,0.00013698,2]
[333457154,1722144648637,-4631.15,0.00013698,2]
[333457155,1722144648647,-4631.15,0.00013698,2]
[333457156,1722144648657,-4631.15,0.00013698,2]
[333457157,1722144648667,-4631.15,0.00013698,2]
[333457158,1722144648676,-4631.15,0.00013698,2]
[333457159,1722144648685,-4631.15,0.00013698,2]
[333457160,1722144648694,-4631.15,0.00013698,2]
[333457161,1722144648703,-583.0711377,0.00013698,2]
[333457162,1722144648713,-4631.15,0.00013698,2]
[333457163,1722144648722,-505.32332464,0.00013698,2]
[333457164,1722144648731,-500.0,0.00013698,2]
[333457165,1722144648741,-500.0,0.00013698,2]
[333457166,1722144648751,-500.0,0.00013698,2]
[333457167,1722144648762,-332.22128548,0.00013698,2]
[333457168,1722144648886,-1460.06,0.00013698,2]
[333457169,1722144648896,-500.0,0.00013698,2]
[333457170,1722144648906,-636.95,0.00013698,2]
[333457171,1722144648917,-151.081586,0.00013698,2]
[333457172,1722144648928,-500.0,0.00013698,2]
[333457173,1722144648937,-594.09276887,0.00013698,2]
[333457174,1722144648947,-500.0,0.00013698,2]
[333457175,1722144648957,-151.0,0.00013698,2]
[333457176,1722144648966,-151.0,0.00013698,2]
[333457177,1722144648976,-508.67784078,0.00013698,2]
[333457178,1722144648985,-500.0,0.00013698,2]
[333457179,1722144648995,-151.0,0.00013698,2]
[333457180,1722144649007,-151.0,0.00013698,2]
[333457181,1722144649017,-151.0,0.00013698,2]
[333457182,1722144649027,-151.0,0.00013698,2]
[333457183,1722144649037,-151.0,0.00013698,2]
[333457184,1722144649046,-151.0,0.00013698,2]
[333457185,1722144649056,-151.0,0.00013698,2]
[333457186,1722144649065,-151.0,0.00013698,2]
[333457187,1722144649075,-151.0,0.00013698,2]
[333457188,1722144649086,-500.0,0.00013698,2]
[333457189,1722144649096,-151.0,0.00013698,2]
[333457190,1722144649106,-151.0,0.00013698,2]
[333457191,1722144649116,-151.0,0.00013698,2]
[333457192,1722144649126,-151.646794,0.00013698,2]
[333457193,1722144649136,-151.0,0.00013698,2]
[333457194,1722144649146,-151.0,0.00013698,2]
[333457195,1722144649157,-648.25580276,0.00013698,2]
[333457196,1722144649167,-151.0,0.00013698,2]
[333457197,1722144649177,-170.791346,0.00013698,2]
[333457198,1722144649186,-215.1108203,0.00013698,2]
[333457199,1722144649197,-500.0,0.00013698,2]
[333457200,1722144649207,-500.0,0.00013698,2]
[333457201,1722144649218,-439.56546543,0.00013698,2]
[333457202,1722144649228,-500.0,0.00013698,2]
[333457203,1722144649238,-500.0,0.00013698,2]
[333457204,1722144649249,-452.48831255,0.00013698,2]
[333457205,1722144649262,-500.0,0.00013698,2]
[333457206,1722144649272,-500.0,0.00013698,2]
[333457207,1722144649282,-500.0,0.00013698,2]
[333457208,1722144649293,-500.0,0.00013698,2]
[333457209,1722144649303,-500.0,0.00013698,2]
[333457210,1722144649314,-643.57356268,0.00013698,2]
[333457211,1722144649324,-500.0,0.00013698,2]
[333457212,1722144649334,-500.0,0.00013698,2]
[333457213,1722144649344,-500.0,0.00013698,2]
[333457214,1722144649354,-500.0,0.00013698,2]
[333457215,1722144649364,-500.0,0.00013698,2]
[333457216,1722144649375,-500.0,0.00013698,2]
[333457217,1722144649385,-500.0,0.00013698,2]
[333457218,1722144649395,-623.24183979,0.00013698,2]
[333457219,1722144649406,-500.0,0.00013698,2]
[333457220,1722144649416,-500.0,0.00013698,2]
[333457221,1722144649426,-500.0,0.00013698,2]
[333457222,1722144649436,-456.9726472,0.00013698,2]
[333457223,1722144649450,-541.49409753,0.00013698,2]
[333457224,1722144649460,-381.59356109,0.00013698,2]
[333457225,1722144649471,-500.0,0.00013698,2]
[333457226,1722144649480,-500.0,0.00013698,2]
[333457227,1722144649491,-500.0,0.00013698,2]
[333457228,1722144649504,-962.84,0.00013698,2]
[333457229,1722144649515,-500.0,0.00013698,2]
[333457230,1722144649527,-500.0,0.00013698,2]
[333457231,1722144649539,-517.87897373,0.00013698,2]
[333457232,1722144649549,-3000.0,0.00013699,2]
[333457233,1722144649560,-616.1983,0.00013699,2]
[333457234,1722144649570,-150.112233,0.000137,2]
[333457235,1722144649581,-4657.8412335,0.00013719,2]
[333457236,1722144649592,-827.79852724,0.00013729,2]
[333457237,1722144649602,-827.79852724,0.00013794,2]
[333457238,1722144649614,-293.9641968,0.000138,2]
[333457239,1722144649624,-827.79852724,0.00013859,2]
[333457240,1722144649635,-153.8855413,0.00013893,2]
[333457241,1722144649645,-415.6905373,0.00013893,2]
[333457242,1722144649656,-306.0,0.00013893,2]
[333457243,1722144649666,-153.0,0.00013893,2]
[333457244,1722144649676,-153.0,0.00013893,2]
[333457245,1722144649686,-153.0,0.00013893,2]
[333457246,1722144649695,-153.0,0.00013893,2]
[333457247,1722144649706,-153.0,0.00013893,2]
[333457248,1722144649716,-294.0187007,0.00013893,2]
[333457249,1722144649726,-153.0,0.00013893,2]
[333457250,1722144649737,-294.0187007,0.00013893,2]
[333457251,1722144649747,-153.0,0.00013893,2]
[333457252,1722144649758,-294.0187007,0.00013893,2]
[333457253,1722144649768,-153.0,0.00013893,2]
[333457254,1722144649779,-294.0187007,0.00013893,2]
[333457255,1722144649788,-153.0,0.00013893,2]
[333457256,1722144649797,-294.0187007,0.00013893,2]
[333457257,1722144649806,-294.0187007,0.00013893,2]
[333457258,1722144649816,-294.0187007,0.00013893,2]
[333457259,1722144649826,-151.409,0.00013915,2]
[333457260,1722144649836,-1409.0,0.00013915,2]
[333457261,1722144649846,-152.377,0.00013915,2]
[333457262,1722144649856,-591.305,0.00013915,2]
[333457263,1722144649866,-620.71942892,0.00013919,2]
[333457264,1722144649877,-33998.87114545,0.0001395,5]
[333457265,1722144649888,-31636.1088868,0.00013951,2]
[333457266,1722144649898,-4631.15,0.00013958,2]
[333457267,1722144649909,-31636.1088868,0.00013961,2]
[333457268,1722144649919,-4631.15,0.00013961,2]
[333457269,1722144649929,-4631.15,0.00013961,2]
[333457270,1722144649940,-4631.15,0.00013961,2]
[333457271,1722144649950,-31636.1088868,0.00013962,2]
[333457272,1722144649960,-4631.15,0.0001397,2]
[333457273,1722144649970,-4631.15,0.00013971,2]
[333457274,1722144649980,-4631.15,0.00013971,2]
[333457275,1722144649990,-500.0,0.00013972,2]
[333457276,1722144650000,-500.0,0.00013972,2]
[333457277,1722144650012,-500.0,0.00013972,2]
[333457278,1722144650022,-500.0,0.00013972,2]
[333457279,1722144650031,-500.0,0.00013972,2]
[333457280,1722144650041,-500.0,0.00013972,2]
[333457281,1722144650051,-500.0,0.00013972,2]
[333457282,1722144650061,-500.0,0.00013972,2]
[333457283,1722144650072,-505.23297808,0.00013972,2]
[333457284,1722144650083,-243.84195048,0.00013972,2]
[333457285,1722144650092,-541.89834431,0.00013972,2]
[333457286,1722144650102,-500.0,0.00013972,2]
[333457287,1722144650112,-500.0,0.00013972,2]
[333457288,1722144650122,-504.85228062,0.00013972,2]
[333457289,1722144650133,-500.0,0.00013972,2]
[333457290,1722144650144,-500.0,0.00013972,2]
[333457291,1722144650154,-501.53184889,0.00013972,2]
[333457292,1722144650164,-500.0,0.00013972,2]
[333457293,1722144650175,-500.0,0.00013972,2]
[333457294,1722144650184,-500.0,0.00013972,2]
[333457295,1722144650194,-1145.26,0.00013972,2]
[333457296,1722144650204,-500.0,0.00013972,2]
[333457297,1722144650213,-500.0,0.00013972,2]
[333457298,1722144650225,-500.0,0.00013972,2]
[333457299,1722144650234,-500.0,0.00013972,2]
[333457300,1722144650245,-500.0,0.00013972,2]
[333457301,1722144650260,-500.0,0.00013972,2]
[333457302,1722144650272,-523.86207582,0.00013972,2]
[333457303,1722144650282,-500.0,0.00013972,2]
[333457304,1722144650291,-500.0,0.00013972,2]
[333457305,1722144650301,-500.0,0.00013972,2]
[333457306,1722144650311,-500.0,0.00013972,2]
[333457307,1722144650320,-288.73353147,0.00013972,2]
[333457308,1722144650329,-500.0,0.00013972,2]
[333457309,1722144650338,-500.0,0.00013972,2]
[333457310,1722144650348,-500.0,0.00013972,2]
[333457311,1722144650357,-500.0,0.00013972,2]
[333457312,1722144650366,-533.97,0.00013972,2]
[333457313,1722144650376,-500.0,0.00013972,2]
[333457314,1722144650386,-500.0,0.00013972,2]
[333457315,1722144650396,-500.0,0.00013972,2]
[333457316,1722144650406,-500.0,0.00013972,2]
[333457317,1722144650416,-500.0,0.00013972,2]
[333457318,1722144650426,-500.0,0.00013972,2]
[333457319,1722144650436,-500.0,0.00013972,2]
[333457320,1722144650450,-500.0,0.00013972,2]
[333457321,1722144650460,-500.0,0.00013972,2]
[333457322,1722144650469,-500.0,0.00013972,2]
[333457323,1722144650479,-500.0,0.00013972,2]
[333457324,1722144650491,-500.0,0.00013972,2]
[333457325,1722144650501,-500.0,0.00013972,2]
[333457326,1722144650511,-500.0,0.00013972,2]
[333457327,1722144650523,-225.85895415,0.00013972,2]
[333457328,1722144650532,-503.4263676,0.00013972,2]
[333457329,1722144650542,-500.0,0.00013972,2]
[333457330,1722144650551,-503.76331425,0.00013972,2]
[333457331,1722144650561,-500.0,0.00013972,2]
[333457332,1722144650571,-500.0,0.00013972,2]
[333457333,1722144650581,-577.91,0.00013972,2]
[333457334,1722144650591,-500.0,0.00013972,2]
[333457335,1722144650600,-500.0,0.00013972,2]
[333457336,1722144650611,-585.31,0.00013972,2]
[333457337,1722144650620,-500.0,0.00013972,2]
[333457338,1722144650632,-500.0,0.00013972,2]
[333457339,1722144650644,-500.0,0.00013972,2]
[333457340,1722144650657,-500.0,0.00013972,2]
[333457341,1722144650669,-500.0,0.00013972,2]
[333457342,1722144650679,-3097.72,0.00013972,2]
[333457343,1722144650688,-4974.02,0.00013972,2]
[333457344,1722144650697,-1453.72,0.00013972,2]
[333457345,1722144650706,-500.0,0.00013972,2]
[333457346,1722144650716,-500.0,0.00013972,2]
[333457347,1722144650725,-500.0,0.00013972,2]
[333457348,1722144650735,-500.0,0.00013972,2]
[333457349,1722144650744,-500.0,0.00013972,2]
[333457350,1722144650755,-500.0,0.00013972,2]
[333457351,1722144650765,-2020.68,0.00013972,2]
[333457352,1722144650775,-500.0,0.00013972,2]
[333457353,1722144650785,-500.0,0.00013972,2]
[333457354,1722144650794,-1283.19,0.00013972,2]
[333457355,1722144650803,-500.0,0.00013972,2]
[333457356,1722144650811,-722.34,0.00013972,2]
[333457357,1722144650820,-500.0,0.00013972,2]
[333457358,1722144650829,-500.0,0.00013972,2]
[333457359,1722144650839,-500.0,0.00013972,2]
[333457360,1722144650848,-500.0,0.00013972,2]
[333457361,1722144650858,-516.89136258,0.00013972,2]
[333457362,1722144650868,-500.0,0.00013972,2]
[333457363,1722144650877,-500.0,0.00013972,2]
[333457364,1722144650888,-500.0,0.00013972,2]
[333457365,1722144650898,-500.0,0.00013972,2]
[333457366,1722144650908,-500.0,0.00013972,2]
[333457367,1722144650919,-1073.88,0.00013972,2]
[333457368,1722144650930,-500.0,0.00013972,2]
[333457369,1722144650940,-526.12,0.00013972,2]
[333457370,1722144650949,-500.0,0.00013972,2]
[333457371,1722144650958,-500.0,0.00013972,2]
[333457372,1722144650968,-500.0,0.00013972,2]
[333457373,1722144650978,-500.0,0.00013972,2]
[333457374,1722144650987,-500.0,0.00013972,2]
[333457375,1722144650996,-500.0,0.00013972,2]
[333457376,1722144651008,-500.0,0.00013972,2]
[333457377,1722144651017,-500.0,0.00013972,2]
[333457378,1722144651028,-4236.73,0.00013972,2]
[333457379,1722144651038,-500.0,0.00013972,2]
[333457380,1722144651048,-500.0,0.00013972,2]
[333457381,1722144651057,-1370.51,0.00013972,2]
[333457382,1722144651066,-500.0,0.00013972,2]
[333457383,1722144651076,-500.0,0.00013972,2]
[333457384,1722144651086,-272.37734654,0.00013972,2]
[333457385,1722144651095,-500.0,0.00013972,2]
[333457386,1722144651106,-2651.7,0.00013972,2]
[333457387,1722144651115,-513.03119679,0.00013972,2]
[333457388,1722144651125,-500.0,0.00013972,2]
[333457389,1722144651136,-500.0,0.00013972,2]
[333457390,1722144651146,-500.0,0.00013972,2]
[333457391,1722144651155,-500.0,0.00013972,2]
[333457392,1722144651166,-500.0,0.00013972,2]
[333457393,1722144651175,-651.92,0.00013972,2]
[333457394,1722144651185,-513.33,0.00013972,2]
[333457395,1722144651194,-500.0,0.00013972,2]
[333457396,1722144651203,-500.0,0.00013972,2]
[333457397,1722144651216,-500.0,0.00013972,2]
[333457398,1722144651225,-500.0,0.00013972,2]
[333457399,1722144651236,-500.0,0.00013972,2]
[333457400,1722144651274,-500.0,0.00013972,2]
[333457401,1722144651283,-500.0,0.00013972,2]
[333457402,1722144651292,-500.0,0.00013972,2]
[333457403,1722144651302,-551.52,0.00013972,2]
[333457404,1722144651312,-500.0,0.00013972,2]
[333457405,1722144651323,-570.42,0.00013972,2]
[333457406,1722144651334,-500.0,0.00013972,2]
[333457407,1722144651344,-500.0,0.00013972,2]
[333457408,1722144651355,-500.0,0.00013972,2]
[333457409,1722144651366,-588.15,0.00013972,2]
[333457410,1722144651375,-500.0,0.00013972,2]
[333457411,1722144651386,-517.95,0.00013972,2]
[333457412,1722144651396,-501.68841101,0.00013972,2]
[333457413,1722144651405,-500.0,0.00013972,2]
[333457414,1722144651415,-500.0,0.00013972,2]
[333457415,1722144651425,-500.0,0.00013972,2]
[333457416,1722144651434,-505.6614369,0.00013972,2]
[333457417,1722144651446,-1334.54,0.00013972,2]
[333457418,1722144651456,-1460.06,0.00013972,2]
[333457419,1722144651467,-500.0,0.00013972,2]
[333457420,1722144651476,-636.95,0.00013972,2]
[333457421,1722144651487,-500.0,0.00013972,2]
[333457422,1722144651496,-505.81304138,0.00013972,2]
[333457423,1722144651507,-500.0,0.00013972,2]
[333457424,1722144651519,-500.0,0.00013972,2]
[333457425,1722144651527,-500.0,0.00013972,2]
[333457426,1722144651537,-500.0,0.00013972,2]
[333457427,1722144651546,-500.0,0.00013972,2]
[333457428,1722144651557,-962.84,0.00013972,2]
[333457429,1722144651566,-4631.15,0.00014244,2]
[333457430,1722144651576,-4631.15,0.00014245,2]
[333457431,1722144651586,-4631.15,0.00014245,2]
[333457432,1722144651595,-4631.15,0.00014245,2]
[333457433,1722144651605,-4631.15,0.00014245,2]
[333457434,1722144651614,-4631.21774189,0.00014245,2]
[333457435,1722144651623,-500.0,0.00014246,2]
[333457436,1722144651632,-500.0,0.00014246,2]
[333457437,1722144651642,-500.0,0.00014246,2]
[333457438,1722144651651,-266.32242013,0.00014246,2]
[333457439,1722144651660,-500.0,0.00014246,2]
[333457440,1722144651672,-500.0,0.00014246,2]
[333457441,1722144651682,-505.29478864,0.00014246,2]
[333457442,1722144651691,-500.0,0.00014246,2]
[333457443,1722144651700,-500.0,0.00014246,2]
[333457444,1722144651710,-500.0,0.00014246,2]
[333457445,1722144651719,-500.0,0.00014246,2]
[333457446,1722144651729,-500.0,0.00014246,2]
[333457447,1722144651738,-1145.26,0.00014246,2]
[333457448,1722144651748,-500.0,0.00014246,2]
[333457449,1722144651759,-508.73150349,0.00014246,2]
[333457450,1722144651769,-500.0,0.00014246,2]
[333457451,1722144651779,-500.0,0.00014246,2]
[333457452,1722144651790,-500.0,0.00014246,2]
[333457453,1722144651799,-500.0,0.00014246,2]
[333457454,1722144651808,-500.0,0.00014246,2]
[333457455,1722144651818,-500.0,0.00014246,2]
[333457456,1722144651827,-500.0,0.00014246,2]
[333457457,1722144651836,-500.0,0.00014246,2]
[333457458,1722144651846,-533.97,0.00014246,2]
[333457459,1722144651855,-363.38964838,0.00014246,2]
[333457460,1722144651865,-500.0,0.00014246,2]
[333457461,1722144651874,-500.0,0.00014246,2]
[333457462,1722144651883,-500.0,0.00014246,2]
[333457463,1722144651893,-500.0,0.00014246,2]
[333457464,1722144651903,-500.0,0.00014246,2]
[333457465,1722144651912,-500.0,0.00014246,2]
[333457466,1722144651921,-500.0,0.00014246,2]
[333457467,1722144651931,-500.0,0.00014246,2]
[333457468,1722144651940,-500.0,0.00014246,2]
[333457469,1722144651950,-601.04,0.00014246,2]
[333457470,1722144651959,-500.0,0.00014246,2]
[333457471,1722144651968,-500.0,0.00014246,2]
[333457472,1722144651977,-500.0,0.00014246,2]
[333457473,1722144651987,-577.91,0.00014246,2]
[333457474,1722144651996,-585.67345205,0.00014246,2]
[333457475,1722144652007,-500.0,0.00014246,2]
[333457476,1722144652016,-585.31,0.00014246,2]
[333457477,1722144652029,-500.0,0.00014246,2]
[333457478,1722144652039,-500.0,0.00014246,2]
[333457479,1722144652052,-500.0,0.00014246,2]
[333457480,1722144652065,-500.0,0.00014246,2]
[333457481,1722144652075,-3097.72,0.00014246,2]
[333457482,1722144652084,-500.0,0.00014246,2]
[333457483,1722144652095,-4974.02,0.00014246,2]
[333457484,1722144652104,-1453.72,0.00014246,2]
[333457485,1722144652114,-500.0,0.00014246,2]
[333457486,1722144652123,-500.0,0.00014246,2]
[333457487,1722144652133,-500.0,0.00014246,2]
[333457488,1722144652142,-500.0,0.00014246,2]
[333457489,1722144652152,-500.0,0.00014246,2]
[333457490,1722144652161,-2020.68,0.00014246,2]
[333457491,1722144652170,-500.0,0.00014246,2]
[333457492,1722144652180,-1283.19,0.00014246,2]
[333457493,1722144652190,-500.0,0.00014246,2]
[333457494,1722144652200,-722.34,0.00014246,2]
[333457495,1722144652210,-500.0,0.00014246,2]
[333457496,1722144652219,-500.0,0.00014246,2]
[333457497,1722144652229,-500.0,0.00014246,2]
[333457498,1722144652238,-500.0,0.00014246,2]
[333457499,1722144652247,-506.99873904,0.00014246,2]
[333457500,1722144652257,-500.0,0.00014246,2]
[333457501,1722144652267,-500.0,0.00014246,2]
[333457502,1722144652276,-469.64321176,0.00014246,2]
[333457503,1722144652286,-500.0,0.00014246,2]
[333457504,1722144652296,-500.0,0.00014246,2]
[333457505,1722144652306,-1073.88,0.00014246,2]
[333457506,1722144652315,-526.12,0.00014246,2]
[333457507,1722144652325,-500.0,0.00014246,2]
[333457508,1722144652335,-506.54902966,0.00014246,2]
[333457509,1722144652344,-500.0,0.00014246,2]
[333457510,1722144652354,-500.0,0.00014246,2]
[333457511,1722144652363,-500.0,0.00014246,2]
[333457512,1722144652374,-500.0,0.00014246,2]
[333457513,1722144652383,-500.0,0.00014246,2]
[333457514,1722144652394,-500.0,0.00014246,2]
[333457515,1722144652403,-4236.73,0.00014246,2]
[333457516,1722144652413,-500.0,0.00014246,2]
[333457517,1722144652423,-500.0,0.00014246,2]
[333457518,1722144652434,-1370.51,0.00014246,2]
[333457519,1722144652447,-500.0,0.00014246,2]
[333457520,1722144652459,-642.45891953,0.00014246,2]
[333457521,1722144652470,-504.32247215,0.00014246,2]
[333457522,1722144652480,-2651.7,0.00014246,2]
[333457523,1722144652491,-585.28770097,0.00014246,2]
[333457524,1722144652501,-500.0,0.00014246,2]
[333457525,1722144652512,-500.0,0.00014246,2]
[333457526,1722144652523,-500.0,0.00014246,2]
[333457527,1722144652533,-500.0,0.00014246,2]
[333457528,1722144652542,-651.92,0.00014246,2]
[333457529,1722144652551,-513.33,0.00014246,2]
[333457530,1722144652561,-500.0,0.00014246,2]
[333457531,1722144652570,-500.0,0.00014246,2]
[333457532,1722144652580,-500.0,0.00014246,2]
[333457533,1722144652590,-504.43991915,0.00014246,2]
[333457534,1722144652600,-500.0,0.00014246,2]
[333457535,1722144652610,-500.0,0.00014246,2]
[333457536,1722144652619,-500.0,0.00014246,2]
[333457537,1722144652628,-551.52,0.00014246,2]
[333457538,1722144652638,-500.0,0.00014246,2]
[333457539,1722144652648,-570.42,0.00014246,2]
[333457540,1722144652658,-500.0,0.00014246,2]
[333457541,1722144652667,-500.0,0.00014246,2]
[333457542,1722144652677,-500.0,0.00014246,2]
[333457543,1722144652686,-588.15,0.00014246,2]
[333457544,1722144652696,-500.0,0.00014246,2]
[333457545,1722144652706,-517.95,0.00014246,2]
[333457546,1722144652717,-500.0,0.00014246,2]
[333457547,1722144652726,-500.0,0.00014246,2]
[333457548,1722144652736,-500.0,0.00014246,2]
[333457549,1722144652745,-1334.54,0.00014246,2]
[333457550,1722144652756,-1460.06,0.00014246,2]
[333457551,1722144652766,-500.0,0.00014246,2]
[333457552,1722144652775,-636.95,0.00014246,2]
[333457553,1722144652785,-500.0,0.00014246,2]
[333457554,1722144652795,-500.0,0.00014246,2]
[333457555,1722144652805,-500.0,0.00014246,2]
[333457556,1722144652815,-500.0,0.00014246,2]
[333457557,1722144652825,-500.0,0.00014246,2]
[333457558,1722144652837,-500.0,0.00014246,2]
[333457559,1722144652847,-962.84,0.00014246,2]
[333457560,1722144652858,-750.0,0.00014247,2]
[333457561,1722144652868,-498.776817,0.00014247,2]
[333457562,1722144652878,-150.112233,0.000143,2]
[333457563,1722144652888,-158.0,0.0001448,2]
[333457564,1722144652898,-500.0,0.0001452,2]
[333457565,1722144652908,-500.0,0.0001452,2]
[333457566,1722144652918,-500.0,0.0001452,2]
[333457567,1722144652928,-500.0,0.0001452,2]
[333457568,1722144652938,-500.0,0.0001452,2]
[333457569,1722144652948,-500.0,0.0001452,2]
[333457570,1722144652959,-500.0,0.0001452,2]
[333457571,1722144652968,-241.26826775,0.0001452,2]
[333457572,1722144652978,-500.0,0.0001452,2]
[333457573,1722144652987,-500.0,0.0001452,2]
[333457574,1722144652997,-1145.26,0.0001452,2]
[333457575,1722144653007,-500.0,0.0001452,2]
[333457576,1722144653018,-500.0,0.0001452,2]
[333457577,1722144653027,-500.0,0.0001452,2]
[333457578,1722144653036,-500.0,0.0001452,2]
[333457579,1722144653045,-500.0,0.0001452,2]
[333457580,1722144653055,-500.0,0.0001452,2]
[333457581,1722144653064,-500.0,0.0001452,2]
[333457582,1722144653074,-500.0,0.0001452,2]
[333457583,1722144653084,-500.0,0.0001452,2]
[333457584,1722144653095,-533.97,0.0001452,2]
[333457585,1722144653105,-500.0,0.0001452,2]
[333457586,1722144653116,-500.0,0.0001452,2]
[333457587,1722144653126,-500.0,0.0001452,2]
[333457588,1722144653138,-500.0,0.0001452,2]
[333457589,1722144653148,-500.0,0.0001452,2]
[333457590,1722144653158,-502.19630273,0.0001452,2]
[333457591,1722144653168,-169.06239659,0.0001452,2]
[333457592,1722144653179,-502.8479274,0.0001452,2]
[333457593,1722144653188,-503.11388745,0.0001452,2]
[333457594,1722144653199,-500.0,0.0001452,2]
[333457595,1722144653210,-500.0,0.0001452,2]
[333457596,1722144653220,-577.91,0.0001452,2]
[333457597,1722144653231,-500.0,0.0001452,2]
[333457598,1722144653240,-585.31,0.0001452,2]
[333457599,1722144653251,-500.0,0.0001452,2]
[333457600,1722144653261,-500.0,0.0001452,2]